[Event "POL Youth-ch U20 Girls 2020"]
[Site "Pokrzywna"]
[Date "2020.12.04"]
[Round "7.10"]
[White "Zabrzanska, Weronika"]
[Black "Budkiewicz, Magdalena"]
[Result "1/2-1/2"]
[ECO "B24"]
[WhiteElo "1849"]
[BlackElo "1672"]
[Annotator "NA RC"]
[PlyCount "60"]
[EventDate "2020.11.29"]
[EventType "swiss"]
[EventCountry "POL"]
[SourceTitle "playchess.com"]
[Source "ChessBase"]
[SourceQuality "1"]
[TimeControl "40/5400+30:1800+30"]

1. e4 {[%emt 0:00:00]} c5 {[%emt 0:00:00]} 2. Nc3 {[%emt 0:00:00]} Nc6 {[%emt 0:00:00]} 3. Nf3 {[%emt 0:00:00]} e5 {[%emt 0:00:13]} 4. Bc4 {[%emt 0:00:00]} Be7 {[%emt 0:00:20]} 5. Nd5 {[%emt 0:01:35]} Nf6 {[%emt 0:01:20]} 6. Nxe7 {[%emt 0:00:22]} Qxe7 {[%emt 0:00:47]} 7. d3 {[%emt 0:00:13]} h6 {[%emt 0:01:49]} 8. c3 {[%emt 0:00:27]} d6 {[%emt 0:01:07]} 9. h3 {[%emt 0:02:10]} a6 {[%emt 0:09:49]} 10. a4 {[%emt 0:05:47]} Be6 {[%emt 0:09:44]} 11. Nd2 {[%emt 0:02:23]} O-O {[%emt 0:03:26]} 12. O-O {[%emt 0:01:39]} Bxc4 {[%emt 0:03:39]} 13. Nxc4 {[%emt 0:00:17]} d5 {[%emt 0:00:40]} 14. Ne3 {[%emt 0:11:37]} Qe6 {[%emt 0:10:05]} 15. Qf3 {[%emt 0:09:36]} Ne7 {[%emt 0:00:22]} 16. exd5 {[%emt 0:04:45]} Nfxd5 {[%emt 0:01:49]} 17. Nxd5 {[%emt 0:06:36]} Nxd5 {[%emt 0:08:21]} 18. Re1 {[%emt 0:11:20]} f5 {[%emt 0:04:58]} 19. Bf4 {[%emt 0:09:10]} Nxf4 {[%emt 0:05:05]} 20. Qxf4 {[%emt 0:00:26]} Rae8 {[%emt 0:01:04]} 21. Qe3 {[%emt 0:01:39]} Qd5 {[%emt 0:05:05]} 22. Rad1 {[%emt 0:03:45]} Rf6 {[%emt 0:04:55]} 23. d4 {[%emt 0:09:08]} cxd4 {[%emt 0:01:35] [#]} 24. Rxd4 $11 {[%emt 0:01:32]} exd4 {[%emt 0:01:34]} 25. Qxe8+ {[%emt 0:00:11]} Kh7 {[%emt 0:05:08]} 26. Qe5 {[%emt 0:05:16]} Qxe5 {[%emt 0:03:21]} 27. Rxe5 {[%emt 0:00:06]} dxc3 {[%emt 0:00:07]} 28. bxc3 {[%emt 0:00:05]} Kg6 {[%emt 0:00:09]} 29. Kf1 {[%emt 0:01:24]} Rc6 {[%emt 0:03:23]} 30. Re7 {[%emt 0:00:23]} b6 {[%emt 0:03:07]} 1/2-1/2

[Event "POL Youth-ch U20 Girls 2020"]
[Site "Pokrzywna"]
[Date "2020.12.04"]
[Round "7.12"]
[White "Czernikowska, Laura"]
[Black "Mirowska, Oliwia"]
[Result "1/2-1/2"]
[ECO "A48"]
[WhiteElo "1508"]
[BlackElo "1820"]
[Annotator "NA RC"]
[PlyCount "96"]
[EventDate "2020.11.29"]
[EventType "swiss"]
[EventCountry "POL"]
[SourceTitle "playchess.com"]
[Source "ChessBase"]
[SourceQuality "1"]
[TimeControl "40/5400+30:1800+30"]

1. d4 {[%emt 0:00:00]} Nf6 {[%emt 0:01:30]} 2. Nf3 {[%emt 0:00:00]} g6 {[%emt 0:02:39]} 3. b3 {[%emt 0:03:50]} c5 {[%emt 0:00:37]} 4. e3 {[%emt 0:01:29]} Bg7 {[%emt 0:00:51]} 5. Bb2 {[%emt 0:01:35]} O-O {[%emt 0:00:22]} 6. Nbd2 {[%emt 0:02:33]} d5 {[%emt 0:01:14]} 7. c4 {[%emt 0:06:18]} Na6 {[%emt 0:03:18]} 8. cxd5 {[%emt 0:03:12]} Nxd5 {[%emt 0:00:58]} 9. Bxa6 {[%emt 0:03:03]} bxa6 {[%emt 0:00:10]} 10. Nc4 {[%emt 0:01:41]} Bg4 {[%emt 0:02:03]} 11. h3 {[%emt 0:08:51]} Bf5 {[%emt 0:07:39]} 12. Nh4 {[%emt 0:10:32]} e6 {[%emt 0:03:03]} 13. Nxf5 {[%emt 0:00:48]} exf5 {[%emt 0:00:09]} 14. O-O {[%emt 0:04:39]} f4 {[%emt 0:04:38]} 15. e4 {[%emt 0:03:44]} Nf6 {[%emt 0:01:16]} 16. dxc5 {[%emt 0:06:26]} Nxe4 {[%emt 0:00:48]} 17. Bxg7 {[%emt 0:01:19]} Kxg7 {[%emt 0:00:07]} 18. Qxd8 {[%emt 0:00:40]} Rfxd8 {[%emt 0:00:09]} 19. b4 {[%emt 0:00:28]} Rd4 {[%emt 0:00:29]} 20. Rfc1 {[%emt 0:01:08]} a5 {[%emt 0:01:48]} 21. a3 {[%emt 0:00:21]} axb4 {[%emt 0:02:20]} 22. axb4 {[%emt 0:00:04]} Rb8 {[%emt 0:01:22]} 23. Rxa7 {[%emt 0:01:49]} Kf6 {[%emt 0:05:55]} 24. Nb6 {[%emt 0:13:25]} Rbd8 {[%emt 0:03:20]} 25. Raa1 {[%emt 0:04:37]} Rxb4 {[%emt 0:01:44]} 26. Ra4 {[%emt 0:01:19]} Rxa4 {[%emt 0:00:55]} 27. Nxa4 {[%emt 0:00:02]} Rc8 {[%emt 0:00:48]} 28. Rc4 {[%emt 0:00:35]} Kf5 {[%emt 0:01:12]} 29. f3 {[%emt 0:01:23]} Ng3 {[%emt 0:04:03]} 30. Nc3 {[%emt 0:02:26]} Ra8 {[%emt 0:01:18]} 31. Ra4 $11 {[%emt 0:04:24]} Rxa4 {[%emt 0:14:22]} 32. Nxa4 {[%emt 0:00:05]} Ne2+ {[%emt 0:00:37]} 33. Kf2 {[%emt 0:00:02]} Nd4 {[%emt 0:00:07]} 34. Nb6 {[%emt 0:01:34]} Ke6 {[%emt 0:02:34]} 35. Ke1 {[%emt 0:01:07]} g5 {[%emt 0:01:05]} 36. Kf2 {[%emt 0:00:16]} h5 {[%emt 0:01:32]} 37. g3 {[%emt 0:00:48]} fxg3+ {[%emt 0:04:40]} 38. Kxg3 {[%emt 0:00:02]} f5 {[%emt 0:00:20]} 39. Kf2 {[%emt 0:02:10]} Nb3 {[%emt 0:01:25]} 40. c6 {[%emt 0:00:00]} Kd6 {[%emt 0:00:00]} 41. c7 {[%emt 0:00:39]} Kxc7 {[%emt 0:00:27]} 42. Nd5+ {[%emt 0:00:07]} Kd6 {[%emt 0:01:31]} 43. Nf6 {[%emt 0:00:45]} Ke5 {[%emt 0:00:23]} 44. Nxh5 {[%emt 0:01:01]} Nc1 {[%emt 0:00:32]} 45. Ng3 {[%emt 0:01:49]} Nd3+ {[%emt 0:01:44]} 46. Kg2 {[%emt 0:03:00]} Kf4 {[%emt 0:01:20]} 47. Nxf5 {[%emt 0:07:26]} Kxf5 {[%emt 0:08:27]} 48. Kg3 {[%emt 0:00:22]} Ke5 1/2-1/2

[Event "POL Youth-ch U20 Girls 2020"]
[Site "Pokrzywna"]
[Date "2020.12.04"]
[Round "7.13"]
[White "Barwinska, Ewa"]
[Black "Siekanska, Zuzanna"]
[Result "1/2-1/2"]
[ECO "B81"]
[WhiteElo "1731"]
[BlackElo "1800"]
[Annotator "NA RC"]
[PlyCount "123"]
[EventDate "2020.11.29"]
[EventType "swiss"]
[EventCountry "POL"]
[SourceTitle "playchess.com"]
[Source "ChessBase"]
[SourceQuality "1"]
[TimeControl "40/5400+30:1800+30"]

1. e4 c5 2. Nf3 e6 3. d4 cxd4 4. Nxd4 Nf6 5. Nc3 d6 6. g4 h6 7. h4 Nc6 8. Rg1 d5 9. exd5 Nxd5 10. Nxd5 exd5 11. h5 Bc5 12. Qe2+ Kd7 13. Nxc6 bxc6 14. Qf3 Re8+ 15. Kd1 Qe7 16. Bd2 Rb8 17. Rb1 Bb4 18. c3 Ba3 19. Kc2 Bc5 20. Bd3 Qf8 21. g5 hxg5 22. Qg4+ Kd8 23. Qxg5+ f6 24. Qxg7 Rb7 25. Qxf8 Rxf8 26. h6 f5 27. Rh1 Rh8 28. Bg5+ Be7 29. f4 Ke8 30. Rbg1 Bf8 31. Be2 Be6 32. Re1 Kd7 33. Rh2 Kd6 34. Reh1 Rbh7 35. Kd3 Bf7 36. b3 Rg8 37. c4 dxc4+ 38. bxc4 Be7 39. Rg2 Bf8 40. Rhh2 Kc5 41. Kc3 Rgh8 42. Rh1 Kd6 43. Rd1+ Kc7 44. Rh1 Kd6 45. Kd4 c5+ 46. Kc3 Be6 47. Bf3 Kc7 48. Rb1 Bc8 49. Rh1 Be6 50. Bd5 Bxd5 51. cxd5 Bd6 52. Rb1 Re8 53. Rbb2 Kc8 54. Kd3 Re4 55. Rge2 Bxf4 56. Bxf4 Rxf4 57. Re8+ Kc7 58. Reb8 Rxh6 59. R2b7+ Kd6 60. Rd8+ Ke5 61. Re7+ Kf6 62. Rxa7 1/2-1/2

[Event "POL Youth-ch U20 Girls 2020"]
[Site "Pokrzywna"]
[Date "2020.12.04"]
[Round "7.14"]
[White "Hertlein, Irena"]
[Black "Siekanska, Maria"]
[Result "0-1"]
[ECO "B18"]
[WhiteElo "1893"]
[BlackElo "1919"]
[Annotator "RC"]
[PlyCount "120"]
[EventDate "2020.11.29"]
[EventType "swiss"]
[EventCountry "POL"]
[SourceTitle "playchess.com"]
[Source "ChessBase"]
[SourceQuality "1"]
[TimeControl "40/5400+30:1800+30"]

1. e4 c6 2. d4 d5 3. Nd2 dxe4 4. Nxe4 Bf5 5. Ng3 Bg6 6. h4 h6 7. h5 Bh7 8. Nf3 e6 9. Bd3 Bxd3 10. Qxd3 Nd7 11. Bd2 Ngf6 12. O-O-O Be7 13. Ne4 Nxe4 14. Qxe4 Nf6 15. Qe2 O-O 16. g4 Nh7 17. Be3 Qa5 18. Kb1 c5 19. dxc5 Bxc5 20. Bxc5 Qxc5 21. Ne5 Rfd8 22. f4 Rac8 23. c3 b5 24. g5 hxg5 25. h6 g6 26. Nxg6 Qf5+ 27. Ka1 fxg6 28. fxg5 Rxd1+ 29. Qxd1 Rf8 30. a3 Qf3 31. Qb1 Qf5 32. Qd1 a5 33. Qd7 Qe5 34. Qd3 Qxg5 35. Qd7 Qe5 36. Rg1 g5 37. Qd3 Rf6 38. Qd8+ Nf8 39. Qe7 Rf5 40. Kb1 a4 41. Ka1 Kh8 42. Ka2 Qf6 43. Qb7 Qf7 44. Qb8 e5+ 45. Ka1 g4 46. Qxb5 g3 47. c4 Rf1+ 48. Rxf1 Qxf1+ 49. Ka2 Ng6 50. Qd7 Qxc4+ 51. Ka1 Qc1+ 52. Ka2 Qxh6 53. Qg4 Ne7 54. Qxg3 Qe6+ 55. Ka1 e4 56. Qh4+ Kg7 57. Qg3+ Kf7 58. Qf4+ Qf5 59. Qh6 Nd5 60. Qa6 e3 0-1

[Event "POL Youth-ch U20 Girls 2020"]
[Site "Pokrzywna"]
[Date "2020.12.04"]
[Round "7.15"]
[White "Wolagiewicz, Kinga"]
[Black "Pietrzak, Emilia"]
[Result "1-0"]
[ECO "B34"]
[WhiteElo "1791"]
[BlackElo "1522"]
[Annotator "NA RC"]
[PlyCount "97"]
[EventDate "2020.11.29"]
[EventType "swiss"]
[EventCountry "POL"]
[SourceTitle "playchess.com"]
[Source "ChessBase"]
[SourceQuality "1"]
[TimeControl "40/5400+30:1800+30"]

1. e4 c5 2. Nf3 Nc6 3. d4 cxd4 4. Nxd4 Nf6 5. Nc3 e5 6. Ndb5 d6 7. a4 a6 8. Na3 Bg4 9. f3 Be6 10. Bc4 Nb4 11. Bg5 Rc8 12. Bxf6 gxf6 13. Nd5 Nxd5 14. Bxd5 Qa5+ 15. c3 Bxd5 16. Qxd5 Qxd5 17. exd5 Bh6 18. Kf2 Kd7 19. g4 Bf4 20. h3 h5 21. Rhe1 Rh6 22. Re4 Rg8 23. Rg1 hxg4 24. hxg4 Rh2+ 25. Rg2 Rxg2+ 26. Kxg2 Rc8 27. Rb4 Rc7 28. Nc4 b5 29. axb5 axb5 30. Na3 Be3 31. Rxb5 Rc5 32. Rxc5 dxc5 33. Nc4 Bf4 34. Kf2 Bg5 35. Ke2 Bf4 36. b4 cxb4 37. cxb4 Kc7 38. b5 e4 39. fxe4 Kd7 40. Kd3 Bg3 41. Ne3 Kc7 42. Kc4 Be5 43. Nf5 Bh2 44. Nh6 Bg3 45. Nxf7 Bf4 46. Kd4 Bg3 47. g5 fxg5 48. Nxg5 Kd7 49. e5 1-0

[Event "POL Youth-ch U20 Girls 2020"]
[Site "Pokrzywna"]
[Date "2020.12.05"]
[Round "8.5"]
[White "Adamczyk, Zuzanna"]
[Black "Dylag, Emilia"]
[Result "0-1"]
[ECO "E71"]
[WhiteElo "1924"]
[BlackElo "2082"]
[Annotator "NA"]
[PlyCount "56"]
[EventDate "2020.11.29"]
[EventType "swiss"]
[EventCountry "POL"]
[SourceTitle "playchess.com"]
[Source "ChessBase"]
[SourceQuality "1"]
[TimeControl "40/5400+30:1800+30"]

1. d4 {[%emt 0:00:00]} Nf6 {[%emt 0:00:00]} 2. c4 {[%emt 0:00:00]} g6 {[%emt 0:00:00]} 3. Nc3 {[%emt 0:00:00]} Bg7 {[%emt 0:00:00]} 4. e4 {[%emt 0:00:11]} d6 {[%emt 0:00:11]} 5. h3 {[%emt 0:00:10]} O-O {[%emt 0:00:24]} 6. Be3 {[%emt 0:00:23]} Nbd7 {[%emt 0:00:19]} 7. g4 {[%emt 0:02:40]} c5 {[%emt 0:00:48]} 8. d5 {[%emt 0:04:38]} e6 {[%emt 0:02:01]} (8... Qa5 $11 9. Bd2 Qd8) 9. dxe6 {[%emt 0:04:17] Discovered Attack} fxe6 {[%emt 0:00:10]} (9... Nb6 $142) 10. f4 {[%emt 0:15:49]} Qa5 {[%emt 0:06:42]} 11. Qd2 {[%emt 0:01:40]} b5 {[%emt 0:10:23]} 12. Bg2 {[%emt 0:06:34] [#]} Bb7 {[%emt 0:09:31]} ({And not} 12... bxc4 13. e5 $11 (13. Qxd6 Rb8 $15)) ({Black should play} 12... Nb6 $1 $19 {[%cal Rb6c4]} 13. Nxb5 Qxd2+ 14. Bxd2 Nxc4) 13. g5 {[%emt 0:08:04]} (13. Rh2 $17) 13... b4 {[%emt 0:05:52]} 14. Nd5 $19 {[%emt 0:10:10]} (14. gxf6 bxc3 15. Qxc3 Qxc3+ 16. bxc3 Bxf6 17. Ne2) 14... exd5 {[%emt 0:02:45]} 15. gxf6 {[%emt 0:01:47]} Nxf6 {[%emt 0:00:10]} 16. exd5 {[%emt 0:05:43]} Rae8 {[%emt 0:00:56]} 17. Ne2 {[%emt 0:03:48]} Ba6 {[%emt 0:07:13]} 18. O-O {[%emt 0:03:11]} Bxc4 {[%emt 0:01:02]} 19. Rfe1 {[%emt 0:06:01]} Nh5 {[%emt 0:05:10]} 20. a3 {[%emt 0:06:36]} Bxb2 {[%emt 0:07:49]} 21. Qxb2 {[%emt 0:11:32]} Rxe3 {[%emt 0:00:15]} 22. axb4 {[%emt 0:01:02]} Qxb4 {[%emt 0:00:22]} 23. Qxb4 {[%emt 0:01:00]} cxb4 {[%emt 0:00:05]} 24. Nd4 {[%emt 0:00:07]} Rxe1+ {[%emt 0:00:51]} 25. Rxe1 {[%emt 0:00:04]} Nxf4 {[%emt 0:00:16]} 26. Re7 {[%emt 0:02:52]} Nxg2 {[%emt 0:04:34]} 27. Ne6 {[%emt 0:01:02]} Rb8 {[%emt 0:00:36]} 28. Kxg2 {[%emt 0:01:31]} Bxd5+ {[%emt 0:00:06]} 0-1

[Event "POL Youth-ch U20 Girls 2020"]
[Site "Pokrzywna"]
[Date "2020.12.05"]
[Round "8.6"]
[White "Szczotka, Klara"]
[Black "Smietanska, Wiktoria"]
[Result "1/2-1/2"]
[ECO "B19"]
[WhiteElo "1928"]
[BlackElo "2013"]
[Annotator "RC"]
[PlyCount "131"]
[EventDate "2020.11.29"]
[EventType "swiss"]
[EventCountry "POL"]
[SourceTitle "playchess.com"]
[Source "ChessBase"]
[SourceQuality "1"]
[TimeControl "40/5400+30:1800+30"]

1. e4 {[%emt 0:00:00]} c6 {[%emt 0:00:00]} 2. d4 {[%emt 0:00:00]} d5 {[%emt 0:00:00]} 3. Nd2 {[%emt 0:00:00]} dxe4 {[%emt 0:00:00]} 4. Nxe4 {[%emt 0:00:03]} Bf5 {[%emt 0:00:00]} 5. Ng3 {[%emt 0:00:03]} Bg6 {[%emt 0:00:02]} 6. h4 {[%emt 0:00:12]} h6 {[%emt 0:00:10]} 7. Nf3 {[%emt 0:00:13]} Nd7 {[%emt 0:00:08]} 8. h5 {[%emt 0:00:12]} Bh7 {[%emt 0:00:05]} 9. Bd3 {[%emt 0:00:08]} Bxd3 {[%emt 0:00:09]} 10. Qxd3 {[%emt 0:00:05]} e6 {[%emt 0:00:15]} 11. Bd2 {[%emt 0:00:34]} Ngf6 {[%emt 0:00:42]} 12. O-O-O {[%emt 0:01:12]} Be7 {[%emt 0:00:07]} 13. Ne4 {[%emt 0:00:49]} O-O {[%emt 0:00:19]} 14. Rdg1 {[%emt 0:02:14]} Nxe4 {[%emt 0:00:21]} 15. Qxe4 {[%emt 0:00:04]} Nf6 {[%emt 0:00:08]} 16. Qe2 {[%emt 0:00:54]} Qd5 {[%emt 0:00:14]} 17. c4 {[%emt 0:03:50]} Qe4 {[%emt 0:00:05]} 18. Qxe4 {[%emt 0:06:08]} Nxe4 {[%emt 0:00:06]} 19. Be3 {[%emt 0:00:47]} b5 {[%emt 0:04:21]} 20. Ne5 {[%emt 0:08:01]} Rac8 {[%emt 0:03:57]} 21. c5 {[%emt 0:08:30]} Rfd8 {[%emt 0:07:15]} 22. Rd1 {[%emt 0:06:16]} Rd5 {[%emt 0:04:14]} 23. f4 {[%emt 0:03:14]} Bf6 {[%emt 0:17:22]} 24. g4 {[%emt 0:17:57]} Bxe5 {[%emt 0:13:43]} 25. fxe5 {[%emt 0:00:19]} Rcd8 {[%emt 0:02:02]} 26. Kc2 {[%emt 0:03:00]} Kf8 {[%emt 0:07:35]} 27. Rhf1 {[%emt 0:06:53]} Ke7 {[%emt 0:03:17]} 28. b4 {[%emt 0:04:04]} R5d7 {[%emt 0:04:13]} 29. Kd3 {[%emt 0:06:17]} Ng5 {[%emt 0:00:54]} 30. Bxg5+ {[%emt 0:00:13]} hxg5 {[%emt 0:00:08]} 31. Ke4 {[%emt 0:00:05]} a5 {[%emt 0:01:20]} 32. bxa5 {[%emt 0:09:14]} Ra7 {[%emt 0:00:19]} 33. Rf3 {[%emt 0:01:15]} Rxa5 {[%emt 0:06:29]} 34. Rdf1 {[%emt 0:00:18]} Rf8 {[%emt 0:00:32]} 35. R1f2 {[%emt 0:00:22]} Ra4 {[%emt 0:00:55]} 36. a3 {[%emt 0:10:01]} Rc4 {[%emt 0:00:28]} 37. Rf1 {[%emt 0:01:05]} Rc2 {[%emt 0:03:56]} 38. R1f2 {[%emt 0:02:02]} Rxf2 {[%emt 0:00:51]} 39. Rxf2 {[%emt 0:00:03]} Ra8 {[%emt 0:00:09]} 40. Rf3 {[%emt 0:00:00]} Ra4 {[%emt 0:00:00]} 41. Rc3 {[%emt 0:01:11]} Kd8 {[%emt 0:07:13]} 42. Rf3 {[%emt 0:02:05]} Ke8 {[%emt 0:00:38]} 43. Rh3 {[%emt 0:01:35]} Ke7 {[%emt 0:01:45]} 44. Rc3 {[%emt 0:00:05]} Ra8 {[%emt 0:05:03]} 45. Rb3 {[%emt 0:03:33]} Ra7 {[%emt 0:00:26]} 46. Rf3 {[%emt 0:04:00]} Ra4 {[%emt 0:03:05]} 47. Rc3 {[%emt 0:00:10]} Ke8 {[%emt 0:01:12]} 48. Rb3 {[%emt 0:05:41]} Kf8 {[%emt 0:08:07]} 49. Rc3 {[%emt 0:01:54]} Kg8 {[%emt 0:01:11]} 50. Rb3 {[%emt 0:03:28]} Kh7 {[%emt 0:00:14]} 51. Rf3 {[%emt 0:00:36]} Ra7 {[%emt 0:00:42]} 52. Rh3 {[%emt 0:01:03]} Ra4 {[%emt 0:09:22]} 53. Rf3 {[%emt 0:00:53]} Kg8 {[%emt 0:00:18]} 54. Rc3 {[%emt 0:00:06]} Kf8 {[%emt 0:01:59]} 55. Rb3 {[%emt 0:00:56]} Rc4 {[%emt 0:02:18]} 56. Rb4 {[%emt 0:01:12]} Rxb4 {[%emt 0:05:01]} 57. axb4 {[%emt 0:00:05]} Ke7 {[%emt 0:05:32]} 58. Ke3 {[%emt 0:00:41]} f6 {[%emt 0:02:40]} 59. exf6+ {[%emt 0:02:32]} Kxf6 {[%emt 0:00:41]} 60. Ke4 {[%emt 0:00:21]} Kf7 {[%emt 0:00:07]} 61. Ke5 {[%emt 0:00:06]} Ke7 {[%emt 0:01:21]} 62. Ke4 {[%emt 0:00:34]} Kf6 {[%emt 0:00:10]} 63. Ke3 {[%emt 0:00:20]} e5 {[%emt 0:00:35]} 64. Ke4 {[%emt 0:00:27]} exd4 {[%emt 0:00:15]} 65. Kxd4 {[%emt 0:00:02]} Ke6 {[%emt 0:00:10]} 66. Ke4 {[%emt 0:00:04]} 1/2-1/2

[Event "POL Youth-ch U20 Girls 2020"]
[Site "Pokrzywna"]
[Date "2020.12.05"]
[Round "8.7"]
[White "Kulpa, Zuzanna"]
[Black "Marcinczyk, Monika"]
[Result "1-0"]
[ECO "B31"]
[WhiteElo "1806"]
[BlackElo "2030"]
[Annotator "NA"]
[PlyCount "67"]
[EventDate "2020.11.29"]
[EventType "swiss"]
[EventCountry "POL"]
[SourceTitle "playchess.com"]
[Source "ChessBase"]
[SourceQuality "1"]
[TimeControl "40/5400+30:1800+30"]

1. e4 {[%emt 0:00:00]} c5 {[%emt 0:00:38]} 2. Nf3 {[%emt 0:00:00]} Nc6 {[%emt 0:00:13]} 3. Bb5 {[%emt 0:00:00]} g6 {[%emt 0:00:25]} 4. Bxc6 {[%emt 0:00:00]} dxc6 {[%emt 0:02:55]} 5. d3 {[%emt 0:00:11]} Bg7 {[%emt 0:00:24]} 6. Nc3 {[%emt 0:01:31]} e5 {[%emt 0:04:46]} 7. Be3 {[%emt 0:02:38]} Qd6 {[%emt 0:02:31]} 8. h3 {[%emt 0:02:18]} Be6 $14 {[%emt 0:02:24]} 9. Ng5 {[%emt 0:03:42]} b6 {[%emt 0:03:15]} 10. O-O {[%emt 0:03:23]} Ne7 {[%emt 0:10:19]} 11. f4 {[%emt 0:04:58]} O-O {[%emt 0:08:56]} 12. f5 {[%emt 0:05:58]} Bd7 {[%emt 0:11:28]} 13. g4 {[%emt 0:05:55]} f6 {[%emt 0:03:29]} 14. Nf3 {[%emt 0:01:11]} g5 {[%emt 0:03:16]} 15. h4 {[%emt 0:02:50]} h6 {[%emt 0:03:10]} 16. Qd2 {[%emt 0:05:12]} Kf7 {[%emt 0:04:46]} 17. Ne2 {[%emt 0:03:18]} gxh4 {[%emt 0:12:43]} 18. Nxh4 {[%emt 0:00:18]} Rh8 {[%emt 0:01:27]} 19. Ng3 {[%emt 0:02:26]} Rag8 {[%emt 0:00:59]} 20. Kf2 {[%emt 0:03:49]} Bf8 {[%emt 0:01:34]} 21. Qe2 {[%emt 0:00:05]} Ke8 {[%emt 0:01:48]} 22. a3 {[%emt 0:04:51]} Kd8 {[%emt 0:02:05]} 23. b4 {[%emt 0:00:40]} cxb4 {[%emt 0:00:39]} 24. axb4 {[%emt 0:00:04]} Nc8 {[%emt 0:00:41]} 25. Rad1 {[%emt 0:10:15]} Qxb4 {[%emt 0:04:57]} 26. d4 {[%emt 0:01:44]} exd4 {[%emt 0:03:08]} 27. Bxd4 {[%emt 0:05:11]} Bc5 {[%emt 0:00:35]} 28. Bxc5 {[%emt 0:03:21]} Qxc5+ {[%emt 0:00:08]} 29. Kf3 {[%emt 0:00:10]} Rh7 {[%emt 0:03:16]} 30. Nh5 {[%emt 0:02:11]} Rf7 {[%emt 0:02:12]} 31. Qd3 {[%emt 0:03:36]} Qe5 {[%emt 0:02:21]} 32. Ng6 {[%emt 0:01:06]} Qh2 {[%emt 0:01:35]} 33. Nhf4 {[%emt 0:06:45]} h5 {[%emt 0:01:04]} 34. gxh5 {[%emt 0:00:12]} 1-0

[Event "POL Youth-ch U20 Girls 2020"]
[Site "Pokrzywna"]
[Date "2020.12.05"]
[Round "8.8"]
[White "Budkiewicz, Magdalena"]
[Black "Cieslak, Wiktoria"]
[Result "1-0"]
[ECO "B28"]
[WhiteElo "1672"]
[BlackElo "2008"]
[Annotator "NA"]
[PlyCount "51"]
[EventDate "2020.11.29"]
[EventType "swiss"]
[EventCountry "POL"]
[SourceTitle "playchess.com"]
[Source "ChessBase"]
[SourceQuality "1"]
[TimeControl "40/5400+30:1800+30"]

1. e4 {[%emt 0:00:00]} c5 {[%emt 0:00:00]} 2. Nf3 {[%emt 0:00:00]} a6 {[%emt 0:00:00]} 3. d4 {[%emt 0:00:00]} cxd4 {[%emt 0:00:00]} 4. Nxd4 {[%emt 0:00:06]} Nf6 {[%emt 0:00:00]} 5. Nc3 {[%emt 0:00:29]} e5 {[%emt 0:00:00]} 6. Nde2 {[%emt 0:00:12]} Bb4 {[%emt 0:00:28]} 7. a3 {[%emt 0:01:23]} Bc5 {[%emt 0:01:27]} 8. Ng3 {[%emt 0:01:29]} d6 {[%emt 0:03:39]} 9. Be2 {[%emt 0:01:12]} Be6 $11 {[%emt 0:06:27]} 10. Nd5 {[%emt 0:06:16]} b5 {[%emt 0:10:16]} 11. O-O {[%emt 0:05:13]} Bxd5 {[%emt 0:05:42]} 12. exd5 {[%emt 0:00:14]} g6 {[%emt 0:02:30]} 13. Bh6 {[%emt 0:03:03]} Nbd7 {[%emt 0:05:07]} 14. Kh1 {[%emt 0:12:21]} Qb6 {[%emt 0:01:43]} 15. Qd3 {[%emt 0:06:49]} Ke7 {[%emt 0:15:53]} 16. b4 {[%emt 0:01:51]} Bxf2 {[%emt 0:00:57]} 17. Rxf2 {[%emt 0:00:26]} Qxf2 {[%emt 0:00:53]} 18. Be3 {[%emt 0:00:10]} Ng4 {[%emt 0:03:35]} 19. Bxg4 {[%emt 0:01:37]} Qf6 {[%emt 0:00:23]} 20. Rf1 {[%emt 0:04:51]} Qg7 {[%emt 0:00:27]} 21. Nf5+ {[%emt 0:04:07]} gxf5 {[%emt 0:01:46]} 22. Qxf5 {[%emt 0:00:06]} Rhd8 {[%emt 0:01:08]} 23. Bg5+ {[%emt 0:02:15]} Ke8 {[%emt 0:01:01]} 24. Bh5 {[%emt 0:00:24]} Nb6 {[%emt 0:02:04]} 25. Qe6+ {[%emt 0:00:17]} Kf8 {[%emt 0:00:13]} 26. Rxf7+ {[%emt 0:00:07]} 1-0

[Event "POL Youth-ch U20 Girls 2020"]
[Site "Pokrzywna"]
[Date "2020.12.05"]
[Round "8.10"]
[White "Siekanska, Maria"]
[Black "Pawicka, Magdalena"]
[Result "1-0"]
[ECO "D20"]
[WhiteElo "1919"]
[BlackElo "1762"]
[Annotator "ChessBase"]
[PlyCount "47"]
[EventDate "2020.11.29"]
[EventType "swiss"]
[EventCountry "POL"]
[SourceTitle "playchess.com"]
[Source "ChessBase"]
[SourceQuality "1"]
[TimeControl "40/5400+30:1800+30"]

1. d4 {[%emt 0:00:00]} d5 {[%emt 0:00:06]} 2. c4 {[%emt 0:00:00]} dxc4 {[%emt 0:00:07]} 3. e3 {[%emt 0:00:00]} Nf6 {[%emt 0:00:18]} 4. Bxc4 {[%emt 0:00:00]} e6 {[%emt 0:00:16]} 5. Nf3 {[%emt 0:00:11]} a6 {[%emt 0:00:26]} 6. Bd3 {[%emt 0:00:50]} b5 {[%emt 0:00:24]} 7. a4 {[%emt 0:01:05]} b4 {[%emt 0:00:22]} 8. O-O {[%emt 0:01:02]} Bb7 {[%emt 0:00:06]} 9. Nbd2 {[%emt 0:00:29]} c5 {[%emt 0:05:20]} 10. e4 {[%emt 0:01:45]} cxd4 {[%emt 0:07:17]} 11. e5 {[%emt 0:02:13]} Nfd7 {[%emt 0:09:11]} 12. Nc4 {[%emt 0:03:42]} Nc6 {[%emt 0:03:11]} 13. Bg5 {[%emt 0:10:14]} Qc7 {[%emt 0:11:06]} 14. Rc1 {[%emt 0:02:29]} Bc5 {[%emt 0:02:58]} 15. Bf4 {[%emt 0:04:03]} Qb8 {[%emt 0:10:06]} 16. Ng5 {[%emt 0:06:48]} h6 {[%emt 0:08:06]} 17. Ne4 {[%emt 0:02:19]} O-O {[%emt 0:00:54]} 18. Qg4 {[%emt 0:04:50]} Kh8 {[%emt 0:07:39]} 19. Qh4 {[%emt 0:01:52]} Be7 {[%emt 0:06:25]} 20. Nf6 {[%emt 0:09:51]} Nxf6 {[%emt 0:03:30]} 21. Bxh6 {[%emt 0:00:34]} Nxe5 {[%emt 0:03:14]} 22. Bf4+ {[%emt 0:01:19]} Kg8 {[%emt 0:00:38]} 23. Bxe5 {[%emt 0:00:20]} Ne4 {[%emt 0:02:27]} 24. Qxe7 {[%emt 0:00:23]} 1-0